fUST/lending_fUST_20240721
["ID","MTS","AMOUNT","RATE_DAILY","PERIOD"]
[332798030,1721531448668,-500.0,0.00013972,2]
[332798031,1721531448678,-500.0,0.00013972,2]
[332798032,1721531448688,-500.0,0.00013972,2]
[332798033,1721531448698,-500.0,0.00013972,2]
[332798034,1721531448708,-892.3,0.00013972,2]
[332798035,1721531448720,-500.0,0.00013972,2]
[332798036,1721531448733,-500.0,0.00013972,2]
[332798037,1721531448743,-500.0,0.00013972,2]
[332798038,1721531448753,-500.0,0.00013972,2]
[332798039,1721531448764,-605.38,0.00013972,2]
[332798040,1721531448774,-500.0,0.00013972,2]
[332798041,1721531448785,-535.12,0.00013972,2]
[332798042,1721531448796,-500.0,0.00013972,2]
[332798043,1721531448806,-504.06071415,0.00013972,2]
[332798044,1721531448816,-241.56863767,0.00013972,2]
[332798045,1721531448826,-573.50308911,0.00013972,2]
[332798046,1721531448836,-389.18177951,0.00013972,2]
[332798047,1721531448846,-500.0,0.00013972,2]
[332798048,1721531448856,-500.0,0.00013972,2]
[332798049,1721531448865,-500.0,0.00013972,2]
[332798050,1721531448875,-526.35927436,0.00013972,2]
[332798051,1721531448886,-500.0,0.00013972,2]
[332798052,1721531448896,-589.98,0.00013972,2]
[332798053,1721531448906,-1077.14,0.00013972,2]
[332798054,1721531448920,-500.0,0.00013972,2]
[332798055,1721531448930,-500.0,0.00013972,2]
[332798056,1721531448940,-473.59674258,0.00013972,2]
[332798057,1721531448951,-500.0,0.00013972,2]
[332798058,1721531448963,-500.0,0.00013972,2]
[332798059,1721531448973,-500.0,0.00013972,2]
[332798060,1721531448984,-1300.82,0.00013972,2]
[332798061,1721531448995,-500.0,0.00013972,2]
[332798063,1721531449004,-500.0,0.00013972,2]
[332798065,1721531449014,-502.02012757,0.00013972,2]
[332798067,1721531449025,-500.0,0.00013972,2]
[332798069,1721531449036,-607.27,0.00013972,2]
[332798071,1721531449046,-697.56,0.00013972,2]
[332798073,1721531449056,-502.66324291,0.00013972,2]
[332798075,1721531449066,-500.0,0.00013972,2]
[332798076,1721531449076,-500.0,0.00013972,2]
[332798078,1721531449088,-500.0,0.00013972,2]
[332798080,1721531449099,-1621.8,0.00013972,2]
[332798082,1721531449110,-500.0,0.00013972,2]
[332798084,1721531449122,-580.31,0.00013972,2]
[332798086,1721531449133,-846.94,0.00013972,2]
[332798088,1721531449143,-500.0,0.00013972,2]
[332798090,1721531449155,-1528.72,0.00013972,2]
[332798092,1721531449166,-500.0,0.00013972,2]
[332798094,1721531449178,-895.45,0.00013972,2]
[332798096,1721531449191,-500.0,0.00013972,2]
[332798098,1721531449202,-503.71144622,0.00013972,2]
[332798100,1721531449213,-310.81795827,0.00013972,2]
[332798102,1721531449224,-503.15214971,0.00013972,2]
[332798104,1721531449234,-500.0,0.00013972,2]
[332798106,1721531449245,-500.0,0.00013972,2]
[332798108,1721531449256,-500.0,0.00013972,2]
[332798111,1721531449267,-500.0,0.00013972,2]
[332798113,1721531449278,-1678.0656644,0.00013972,2]
[332798115,1721531449289,-500.0,0.00013972,2]
[332798117,1721531449300,-500.0,0.00013972,2]
[332798119,1721531449310,-500.0,0.00013972,2]
[332798121,1721531449320,-677.78,0.00013972,2]
[332798123,1721531449330,-494.30675282,0.00013972,2]
[332798124,1721531449341,-500.0,0.00013972,2]
[332798126,1721531449350,-877.5,0.00013972,2]
[332798128,1721531449360,-861.29,0.00013972,2]
[332798130,1721531449369,-500.0,0.00013972,2]
[332798132,1721531449380,-500.0,0.00013972,2]
[332798134,1721531449392,-500.0,0.00013972,2]
[332798136,1721531449401,-500.0,0.00013972,2]
[332798138,1721531449411,-500.0,0.00013972,2]
[332798140,1721531449422,-907.46,0.00013972,2]
[332798142,1721531449432,-1472.9,0.00013972,2]
[332798144,1721531449442,-500.0,0.00013972,2]
[332798146,1721531449453,-500.0,0.00013972,2]
[332798148,1721531449463,-500.0,0.00013972,2]
[332798150,1721531449473,-500.0,0.00013972,2]
[332798151,1721531449482,-736.56,0.00013972,2]
[332798153,1721531449492,-744.63,0.00013972,2]
[332798155,1721531449503,-500.0,0.00013972,2]
[332798157,1721531449513,-500.0,0.00013972,2]
[332798159,1721531449523,-2867.08,0.00013972,2]
[332798161,1721531449533,-990.33,0.00013972,2]
[332798163,1721531449544,-741.1,0.00013972,2]
[332798165,1721531449558,-151.0,0.00013972,2]
[332798167,1721531449568,-151.0,0.00013972,2]
[332798169,1721531449578,-500.0,0.00013972,2]
[332798171,1721531449589,-500.0,0.00013972,2]
[332798173,1721531449600,-500.0,0.00013972,2]
[332798175,1721531449612,-1146.38,0.00013972,2]
[332798177,1721531449624,-604.59,0.00013972,2]
[332798179,1721531449635,-500.0,0.00013972,2]
[332798181,1721531449646,-500.0,0.00013972,2]
[332798183,1721531449656,-500.0,0.00013972,2]
[332798185,1721531449666,-571.4,0.00013972,2]
[332798187,1721531449676,-565.48950967,0.00013972,2]
[332798189,1721531449688,-624.1,0.00013972,2]
[332798191,1721531449699,-500.0,0.00013972,2]
[332798193,1721531449709,-1970.43,0.00013972,2]
[332798195,1721531449720,-500.0,0.00013972,2]
[332798197,1721531449730,-500.0,0.00013972,2]
[332798199,1721531449740,-360.07193622,0.00013972,2]
[332798201,1721531449750,-2721.26,0.00013972,2]
[332798203,1721531449760,-500.0,0.00013972,2]
[332798205,1721531449770,-500.0,0.00013972,2]
[332798207,1721531449780,-514.33580415,0.00013972,2]
[332798209,1721531449790,-500.0,0.00013972,2]
[332798211,1721531449800,-523.66,0.00013972,2]
[332798212,1721531449810,-500.0,0.00013972,2]
[332798214,1721531449820,-500.0,0.00013972,2]
[332798216,1721531449829,-759.39,0.00013972,2]
[332798218,1721531449839,-500.0,0.00013972,2]
[332798220,1721531449849,-806.1,0.00013972,2]
[332798222,1721531449859,-502.94349223,0.00013972,2]
[332798224,1721531449869,-758.9,0.00013972,2]
[332798226,1721531449879,-925.23,0.00013972,2]
[332798228,1721531449889,-504.29453083,0.00013972,2]
[332798230,1721531449899,-500.0,0.00013972,2]
[332798232,1721531449909,-1145.53,0.00013972,2]
[332798234,1721531449921,-500.0,0.00013972,2]
[332798236,1721531449931,-500.0,0.00013972,2]
[332798238,1721531449941,-591.97,0.00013972,2]
[332798240,1721531449951,-500.0,0.00013972,2]
[332798242,1721531449961,-500.0,0.00013972,2]
[332798244,1721531449972,-798.45,0.00013972,2]
[332798246,1721531449983,-500.0,0.00013972,2]
[332798248,1721531449995,-1063.01,0.00013972,2]
[332798250,1721531450005,-500.0,0.00013972,2]
[332798252,1721531450015,-1811.52,0.00013972,2]
[332798254,1721531450025,-543.25,0.00013972,2]
[332798256,1721531450034,-557.84985499,0.00013972,2]
[332798258,1721531450044,-500.0,0.00013972,2]
[332798260,1721531450054,-500.0,0.00013972,2]
[332798262,1721531450063,-500.0,0.00013972,2]
[332798264,1721531450072,-500.0,0.00013972,2]
[332798266,1721531450082,-500.0,0.00013972,2]
[332798268,1721531450092,-500.0,0.00013972,2]
[332798270,1721531450101,-151.0,0.00013972,2]
[332798272,1721531450111,-502.85,0.00013972,2]
[332798274,1721531450121,-509.41848931,0.00013972,2]
[332798276,1721531450131,-511.85,0.00013972,2]
[332798278,1721531450140,-511.29,0.00013972,2]
[332798279,1721531450150,-500.0,0.00013972,2]
[332798282,1721531450160,-519.39971363,0.00013972,2]
[332798283,1721531450169,-500.0,0.00013972,2]
[332798285,1721531450179,-500.0,0.00013972,2]
[332798287,1721531450188,-789.16,0.00013972,2]
[332798289,1721531450198,-500.0,0.00013972,2]
[332798291,1721531450206,-500.0,0.00013972,2]
[332798293,1721531450217,-550.87,0.00013972,2]
[332798295,1721531450226,-582.4,0.00013972,2]
[332798297,1721531450235,-555.45,0.00013972,2]
[332798298,1721531450244,-614.64,0.00013972,2]
[332798299,1721531450253,-500.0,0.00013972,2]
[332798300,1721531450263,-809.08,0.00013972,2]
[332798301,1721531450272,-500.0,0.00013972,2]
[332798302,1721531450281,-4174.87,0.00013972,2]
[332798303,1721531450290,-500.0,0.00013972,2]
[332798304,1721531450299,-500.0,0.00013972,2]
[332798305,1721531450308,-500.0,0.00013972,2]
[332798306,1721531450318,-1426.74,0.00013972,2]
[332798307,1721531450330,-1694.23,0.00013972,2]
[332798308,1721531450342,-500.0,0.00013972,2]
[332798310,1721531450351,-500.0,0.00013972,2]
[332798312,1721531450361,-500.0,0.00013972,2]
[332798314,1721531450370,-500.0,0.00013972,2]
[332798316,1721531450379,-500.0,0.00013972,2]
[332798318,1721531450389,-500.0,0.00013972,2]
[332798319,1721531450399,-500.0,0.00013972,2]
[332798320,1721531450409,-1624.67,0.00013972,2]
[332798321,1721531450420,-500.0,0.00013972,2]
[332798322,1721531450430,-500.0,0.00013972,2]
[332798323,1721531450442,-500.0,0.00013972,2]
[332798324,1721531450451,-508.57805667,0.00013972,2]
[332798325,1721531450463,-500.0,0.00013972,2]
[332798326,1721531450474,-500.0,0.00013972,2]
[332798327,1721531450485,-500.0,0.00013972,2]
[332798328,1721531450498,-500.0,0.00013972,2]
[332798329,1721531450508,-500.0,0.00013972,2]
[332798330,1721531450520,-500.0,0.00013972,2]
[332798331,1721531450531,-503.73580191,0.00013972,2]
[332798332,1721531450542,-500.0,0.00013972,2]
[332798333,1721531450553,-500.0,0.00013972,2]
[332798334,1721531450563,-500.0,0.00013972,2]
[332798335,1721531450573,-500.0,0.00013972,2]
[332798336,1721531450584,-715.2,0.00013972,2]
[332798337,1721531450594,-500.0,0.00013972,2]
[332798338,1721531450606,-151.0,0.00013972,2]
[332798339,1721531450617,-500.0,0.00013972,2]
[332798340,1721531450627,-518.903678,0.00013972,2]
[332798341,1721531450637,-500.0,0.00013972,2]
[332798342,1721531450647,-500.0,0.00013972,2]
[332798343,1721531450657,-500.0,0.00013972,2]
[332798344,1721531450668,-814.99,0.00013972,2]
[332798345,1721531450679,-500.0,0.00013972,2]
[332798346,1721531450688,-1092.35,0.00013972,2]
[332798347,1721531450698,-500.0,0.00013972,2]
[332798348,1721531450708,-1195.72,0.00013972,2]
[332798349,1721531450720,-500.0,0.00013972,2]
[332798350,1721531450731,-500.0,0.00013972,2]
[332798351,1721531450742,-1693.08,0.00013972,2]
[332798352,1721531450753,-1489.25,0.00013972,2]
[332798353,1721531450765,-645.13695881,0.00013972,2]
[332798354,1721531450775,-500.0,0.00013972,2]
[332798355,1721531450786,-1933.06,0.00013972,2]
[332798356,1721531450796,-366.64214874,0.00013972,2]
[332798357,1721531450807,-500.0,0.00013972,2]
[332798358,1721531450817,-500.0,0.00013972,2]
[332798359,1721531450827,-505.92769148,0.00013972,2]
[332798360,1721531450838,-1897.45,0.00013972,2]
[332798361,1721531450849,-500.0,0.00013972,2]
[332798362,1721531450859,-551.1,0.00013972,2]
[332798363,1721531450870,-668.01,0.00013972,2]
[332798364,1721531450881,-500.0,0.00013972,2]
[332798365,1721531450890,-500.0,0.00013972,2]
[332798366,1721531450900,-500.0,0.00013972,2]
[332798367,1721531450911,-955.41,0.00013972,2]
[332798368,1721531450924,-500.0,0.00013972,2]
[332798369,1721531450935,-500.0,0.00013972,2]
[332798370,1721531450946,-257.77649434,0.00013972,2]
[332798371,1721531450956,-500.0,0.00013972,2]
[332798372,1721531450967,-709.72,0.00013972,2]
[332798373,1721531450976,-1809.04,0.00013972,2]
[332798374,1721531450987,-500.0,0.00013972,2]
[332798375,1721531450997,-1643.36,0.00013972,2]
[332798376,1721531451007,-544.25,0.00013972,2]
[332798377,1721531451016,-297.81478133,0.00013972,2]
[332798378,1721531451026,-500.0,0.00013972,2]
[332798380,1721531451036,-500.0,0.00013972,2]
[332798382,1721531451046,-500.0,0.00013972,2]
[332798384,1721531451056,-580.74,0.00013972,2]
[332798386,1721531451069,-501.95006325,0.00013972,2]
[332798389,1721531451080,-500.0,0.00013972,2]
[332798391,1721531451090,-500.0,0.00013972,2]
[332798393,1721531451102,-171.40599026,0.00013972,2]
[332798395,1721531451113,-500.0,0.00013972,2]
[332798397,1721531451123,-1219.61,0.00013972,2]
[332798399,1721531451134,-3609.17,0.00013972,2]
[332798401,1721531451145,-500.0,0.00013972,2]
[332798403,1721531451155,-500.0,0.00013972,2]
[332798405,1721531451166,-2349.57,0.00013972,2]
[332798407,1721531451176,-500.0,0.00013972,2]
[332798409,1721531451186,-1746.75,0.00013972,2]
[332798411,1721531451196,-500.0,0.00013972,2]
[332798413,1721531451206,-504.64,0.00013972,2]
[332798415,1721531451218,-5625.7,0.00013972,2]
[332798417,1721531451228,-1174.9,0.00013972,2]
[332798419,1721531451238,-500.0,0.00013972,2]
[332798421,1721531451248,-500.0,0.00013972,2]
[332798423,1721531451258,-732.99,0.00013972,2]
[332798425,1721531451269,-500.0,0.00013972,2]
[332798428,1721531451280,-837.58,0.00013972,2]
[332798430,1721531451291,-500.0,0.00013972,2]
[332798432,1721531451303,-500.0,0.00013972,2]
[332798434,1721531451316,-503.96209384,0.00013972,2]
[332798436,1721531451327,-1300.9,0.00013972,2]
[332798438,1721531451337,-500.0,0.00013972,2]
[332798441,1721531451347,-2570.26,0.00013972,2]
[332798443,1721531451357,-1097.27,0.00013972,2]
[332798445,1721531451367,-504.86512763,0.00013972,2]
[332798447,1721531451376,-633.18,0.00013972,2]
[332798449,1721531451386,-948.19,0.00013972,2]
[332798451,1721531451396,-534.93,0.00013972,2]
[332798453,1721531451405,-1836.33,0.00013972,2]
[332798455,1721531451415,-500.0,0.00013972,2]
[332798457,1721531451424,-2282.34,0.00013972,2]
[332798459,1721531451433,-2258.16,0.00013972,2]
[332798461,1721531451443,-1173.25,0.00013972,2]
[332798463,1721531451453,-500.0,0.00013972,2]
[332798465,1721531451463,-601.89,0.00013972,2]
[332798467,1721531451473,-500.0,0.00013972,2]
[332798469,1721531451482,-2022.82,0.00013972,2]
[332798471,1721531451494,-1055.7,0.00013972,2]
[332798473,1721531451504,-657.63,0.00013972,2]
[332798475,1721531451513,-512.34617721,0.00013972,2]
[332798477,1721531451524,-500.0,0.00013972,2]
[332798479,1721531451534,-500.0,0.00013972,2]
[332798481,1721531451543,-548.9,0.00013972,2]
[332798483,1721531451552,-500.0,0.00013972,2]
[332798486,1721531451564,-511.69752163,0.00013972,2]
[332798488,1721531451577,-910.34,0.00013972,2]
[332798490,1721531451587,-500.0,0.00013972,2]
[332798492,1721531451597,-500.0,0.00013972,2]
[332798494,1721531451606,-4153.2,0.00013972,2]
[332798496,1721531451616,-256.63883517,0.00013972,2]
[332798498,1721531451625,-991.26,0.00013972,2]
[332798500,1721531451636,-500.0,0.00013972,2]
[332798502,1721531451645,-672.79,0.00013972,2]
[332798504,1721531451656,-572.28,0.00013972,2]
[332798506,1721531451666,-3122.49,0.00013972,2]
[332798508,1721531451676,-780.96,0.00013972,2]
[332798510,1721531451687,-503.35722576,0.00013972,2]
[332798512,1721531451697,-500.0,0.00013972,2]
[332798514,1721531451706,-513.96833287,0.00013972,2]
[332798516,1721531451717,-558.09,0.00013972,2]
[332798518,1721531451728,-500.0,0.00013972,2]
[332798520,1721531451738,-646.26,0.00013972,2]
[332798522,1721531451747,-8031.53,0.00013972,2]
[332798524,1721531451757,-663.25,0.00013972,2]
[332798526,1721531451767,-500.0,0.00013972,2]
[332798528,1721531451777,-500.0,0.00013972,2]
[332798530,1721531451786,-599.7,0.00013972,2]
[332798532,1721531451796,-353.74643827,0.00013972,2]
[332798534,1721531451805,-500.0,0.00013972,2]
[332798536,1721531451815,-500.0,0.00013972,2]
[332798538,1721531451825,-2495.28,0.00013972,2]
[332798540,1721531451834,-823.1,0.00013972,2]
[332798542,1721531451844,-764.43,0.00013972,2]
[332798544,1721531451854,-500.0,0.00013972,2]
[332798547,1721531451864,-1788.73,0.00013972,2]
[332798549,1721531451874,-500.0,0.00013972,2]
[332798551,1721531451883,-5060.08,0.00013972,2]
[332798553,1721531451893,-640.12,0.00013972,2]
[332798555,1721531451904,-2885.31,0.00013972,2]
[332798557,1721531451917,-500.0,0.00013972,2]
[332798559,1721531451927,-500.0,0.00013972,2]
[332798561,1721531451936,-648.19,0.00013972,2]
[332798563,1721531451947,-500.0,0.00013972,2]
[332798565,1721531451957,-501.95092707,0.00013972,2]
[332798567,1721531451968,-1468.73,0.00013972,2]
[332798569,1721531451977,-847.46,0.00013972,2]
[332798571,1721531451987,-773.443423,0.00013972,2]
[332798573,1721531451999,-773.443423,0.00013972,2]
[332798575,1721531452009,-500.0,0.00013972,2]
[332798577,1721531452018,-773.443423,0.00013972,2]
[332798579,1721531452028,-773.443423,0.00013972,2]
[332798581,1721531452038,-500.0,0.00013972,2]
[332798584,1721531452047,-985.85,0.00013972,2]
[332798586,1721531452056,-500.0,0.00013972,2]
[332798588,1721531452066,-2980.45,0.00013972,2]
[332798590,1721531452077,-500.0,0.00013972,2]
[332798592,1721531452087,-500.0,0.00013972,2]
[332798594,1721531452096,-500.0,0.00013972,2]
[332798596,1721531452106,-504.33677994,0.00013972,2]
[332798598,1721531452115,-500.0,0.00013972,2]
[332798600,1721531452125,-500.0,0.00013972,2]
[332798602,1721531452135,-385.16207719,0.00013972,2]
[332798604,1721531452144,-641.5,0.00013972,2]
[332798606,1721531452154,-1969.99,0.00013972,2]
[332798608,1721531452164,-5252.85,0.00013972,2]
[332798610,1721531452173,-1135.11,0.00013972,2]
[332798612,1721531452183,-500.0,0.00013972,2]
[332798613,1721531452193,-552.99,0.00013972,2]
[332798614,1721531452202,-1257.69,0.00013972,2]
[332798616,1721531452212,-500.0,0.00013972,2]
[332798618,1721531452222,-3192.94,0.00013972,2]
[332798620,1721531452231,-500.0,0.00013972,2]
[332798622,1721531452241,-3509.05,0.00013972,2]
[332798624,1721531452251,-500.0,0.00013972,2]
[332798626,1721531452260,-500.0,0.00013972,2]
[332798628,1721531452270,-500.0,0.00013972,2]
[332798630,1721531452279,-500.0,0.00013972,2]
[332798632,1721531452289,-11449.06,0.00013972,2]
[332798634,1721531452299,-7537.32,0.00013972,2]
[332798636,1721531452308,-833.85,0.00013972,2]
[332798638,1721531452317,-500.0,0.00013972,2]
[332798640,1721531452327,-1708.93,0.00013972,2]
[332798642,1721531452337,-500.0,0.00013972,2]
[332798645,1721531452347,-500.0,0.00013972,2]
[332798647,1721531452357,-500.0,0.00013972,2]
[332798649,1721531452366,-4683.45,0.00013972,2]
[332798651,1721531452376,-1403.62,0.00013972,2]
[332798653,1721531452385,-2253.80450821,0.00013972,2]
[332798715,1721531453412,-500.0,0.00013698,2]
[332798716,1721531453422,-500.0,0.00013698,2]
[332798717,1721531453432,-500.0,0.00013698,2]
[332798718,1721531453441,-352.71549179,0.00013972,2]
[332798719,1721531453451,-354.65270978,0.00013972,2]
[332798720,1721531453463,-215.72729022,0.00013972,2]
[332798721,1721531453473,-500.0,0.00013972,2]
[332798722,1721531453482,-794.72,0.00013972,2]
[332798723,1721531453492,-293.87613278,0.00013972,2]
[332798724,1721531453503,-663.87386722,0.00013972,2]
[332798725,1721531453513,-1056.28,0.00013972,2]
[332798726,1721531453522,-500.0,0.00013972,2]
[332798727,1721531453532,-500.0,0.00013972,2]
[332798728,1721531453542,-541.1,0.00013972,2]
[332798729,1721531453551,-500.0,0.00013972,2]
[332798730,1721531453561,-777.34,0.00013972,2]
[332798731,1721531453570,-405.11849119,0.00013972,2]
[332798734,1721532167775,1000.0,0.00025,120]
[332798760,1721532560264,855.0,0.00025,120]
[332798884,1721532639068,-155.54258327,9.999e-05,2]
[332798886,1721532639077,-154.77557542,9.999e-05,2]
[332798888,1721532639087,-156.99370181,9.999e-05,2]
[332798890,1721532639096,-155.07581934,9.999e-05,2]
[332798892,1721532639106,-804.60993887,9.999e-05,2]
[332798894,1721532639115,-300.0,0.00012419,2]
[332798896,1721532639124,-24900.0,0.0001242,2]
[332798898,1721532639134,-320.52945897,0.00013598,2]
[332798900,1721532639143,-9443.88603288,0.00013688,2]
[332798902,1721532639153,-500.0,0.00013698,2]
[332798904,1721532639162,-448.8124803,0.00013698,2]
[332798906,1721532639171,-500.0,0.00013698,2]
[332798908,1721532639181,-500.0,0.00013698,2]
[332798910,1721532639191,-520.0,0.00013698,2]
[332798912,1721532639201,-228.13644181,0.00013698,2]
[332798914,1721532639211,-500.0,0.00013698,2]
[332798916,1721532639220,-500.0,0.00013698,2]
[332798918,1721532639229,-500.0,0.00013698,2]
[332798920,1721532639239,-500.0,0.00013698,2]
[332798922,1721532639250,-500.0,0.00013698,2]
[332798924,1721532639259,-500.0,0.00013698,2]
[332798926,1721532639270,-216.65655627,0.00013698,2]
[332798928,1721532639280,-500.0,0.00013698,2]
[332798930,1721532639291,-500.0,0.00013698,2]
[332798933,1721532639303,-500.89337382,0.00013698,2]
[332798935,1721532639313,-500.0,0.00013698,2]
[332798937,1721532639323,-500.0,0.00013698,2]
[332798939,1721532639336,-500.0,0.00013698,2]
[332798941,1721532639349,-500.68634203,0.00013698,2]
[332798944,1721532639360,-500.0,0.00013698,2]
[332798946,1721532639370,-500.0,0.00013698,2]
[332798948,1721532639380,-500.0,0.00013698,2]
[332798950,1721532639391,-250.2041992,0.00013698,2]
[332798952,1721532639400,-500.0,0.00013698,2]
[332798954,1721532639409,-500.0,0.00013698,2]
[332798956,1721532639420,-500.73146762,0.00013698,2]
[332798958,1721532639430,-500.0,0.00013698,2]
[332798960,1721532639441,-500.0,0.00013698,2]
[332798962,1721532639451,-500.0,0.00013698,2]
[332798964,1721532639461,-525.72198129,0.00013698,2]
[332798966,1721532639470,-500.0,0.00013698,2]
[332798968,1721532639481,-500.0,0.00013698,2]
[332798970,1721532639492,-500.0,0.00013698,2]
[332798972,1721532639502,-500.0,0.00013698,2]
[332798974,1721532639511,-500.00000002,0.00013698,2]
[332798976,1721532639521,-500.0,0.00013698,2]
[332798978,1721532639530,-500.0,0.00013698,2]
[332798980,1721532639541,-500.0,0.00013698,2]
[332798982,1721532639550,-500.0,0.00013698,2]
[332798984,1721532639560,-500.0,0.00013698,2]
[332798986,1721532639570,-494.30675282,0.00013698,2]
[332798988,1721532639579,-500.0,0.00013698,2]
[332798990,1721532639588,-500.0,0.00013698,2]
[332798992,1721532639598,-500.0,0.00013698,2]
[332798994,1721532639607,-500.0,0.00013698,2]
[332798996,1721532639616,-811.65,0.00013698,2]
[332798998,1721532639625,-500.0,0.00013698,2]
[332799000,1721532639634,-825.4,0.00013698,2]
[332799002,1721532639643,-500.0,0.00013698,2]
[332799004,1721532639652,-869.65,0.00013698,2]
[332799006,1721532639662,-500.0,0.00013698,2]
[332799008,1721532639671,-500.0,0.00013698,2]
[332799010,1721532639681,-705.87,0.00013698,2]
[332799012,1721532639690,-500.0,0.00013698,2]
[332799014,1721532639701,-949.06,0.00013698,2]
[332799016,1721532639710,-500.0,0.00013698,2]
[332799018,1721532639719,-500.0,0.00013698,2]
[332799020,1721532639728,-500.0,0.00013698,2]
[332799022,1721532639738,-500.0,0.00013698,2]
[332799024,1721532639747,-500.0,0.00013698,2]
[332799026,1721532639757,-500.0,0.00013698,2]
[332799028,1721532639767,-500.0,0.00013698,2]
[332799030,1721532639777,-500.0,0.00013698,2]
[332799032,1721532639788,-500.0,0.00013698,2]
[332799034,1721532639798,-624.728192,0.00013698,2]
[332799036,1721532639807,-500.0,0.00013698,2]
[332799039,1721532639819,-710.22,0.00013698,2]
[332799041,1721532639831,-500.0,0.00013698,2]
[332799042,1721532639841,-500.0,0.00013698,2]
[332799043,1721532639851,-500.0,0.00013698,2]
[332799044,1721532639860,-500.0,0.00013698,2]
[332799045,1721532639869,-547.59,0.00013698,2]
[332799046,1721532639879,-624.06,0.00013698,2]
[332799047,1721532639891,-500.0,0.00013698,2]
[332799048,1721532639901,-360.07193622,0.00013698,2]
[332799049,1721532639913,-186.58567742,0.00013698,2]
[332799051,1721532639923,-565.48950967,0.00013698,2]
[332799053,1721532639933,-500.0,0.00013698,2]
[332799055,1721532639944,-500.0,0.00013698,2]
[332799057,1721532639954,-500.0,0.00013698,2]
[332799059,1721532639963,-501.84,0.00013698,2]
[332799061,1721532639973,-500.0,0.00013698,2]
[332799063,1721532639982,-500.0,0.00013698,2]
[332799065,1721532639992,-500.0,0.00013698,2]
[332799067,1721532640002,-500.0,0.00013698,2]
[332799069,1721532640012,-500.0,0.00013698,2]
[332799071,1721532640022,-500.0,0.00013698,2]
[332799073,1721532640033,-1097.8,0.00013698,2]
[332799075,1721532640042,-500.0,0.00013698,2]
[332799077,1721532640050,-502.94349223,0.00013698,2]
[332799079,1721532640060,-555.93805008,0.00013698,2]
[332799081,1721532640069,-500.0,0.00013698,2]
[332799083,1721532640078,-500.0,0.00013698,2]
[332799085,1721532640088,-244.6032526,0.00013698,2]
[332799087,1721532640098,-500.0,0.00013698,2]
[332799089,1721532640107,-500.0,0.00013698,2]
[332799091,1721532640117,-500.0,0.00013698,2]
[332799093,1721532640126,-500.0,0.00013698,2]
[332799095,1721532640135,-500.0,0.00013698,2]
[332799097,1721532640145,-500.0,0.00013698,2]
[332799099,1721532640155,-500.0,0.00013698,2]
[332799101,1721532640164,-500.0,0.00013698,2]
[332799103,1721532640174,-500.0,0.00013698,2]
[332799105,1721532640184,-551.87,0.00013698,2]
[332799107,1721532640194,-500.0,0.00013698,2]
[332799109,1721532640203,-500.0,0.00013698,2]
[332799111,1721532640212,-500.0,0.00013698,2]
[332799113,1721532640222,-500.0,0.00013698,2]